fUSD/lending_fUSD_20250623
["ID","MTS","AMOUNT","RATE_DAILY","PERIOD"]
[367132837,1750665096370,-490.0,0.00028493,3]
[367132838,1750665096380,-490.0,0.00028493,3]
[367132839,1750665096390,-490.0,0.00028493,3]
[367132840,1750665096401,-898.51,0.00028493,3]
[367132841,1750665096411,-934.07,0.00028493,3]
[367132842,1750665096420,-490.0,0.00028493,3]
[367132843,1750665096430,-490.0,0.00028493,3]
[367132844,1750665096523,-1055.8,0.00028493,3]
[367132845,1750665096533,-490.0,0.00028493,3]
[367132846,1750665096543,-511.53,0.00028493,3]
[367132847,1750665096552,-490.0,0.00028493,3]
[367132848,1750665096562,-490.0,0.00028493,3]
[367132849,1750665096571,-490.0,0.00028493,3]
[367132850,1750665096580,-600.83,0.00028493,3]
[367132851,1750665096590,-490.0,0.00028493,3]
[367132852,1750665096599,-490.0,0.00028493,3]
[367132853,1750665096609,-588.13,0.00028493,3]
[367132854,1750665096619,-490.0,0.00028493,3]
[367132855,1750665096628,-490.0,0.00028493,3]
[367132856,1750665096637,-490.0,0.00028493,3]
[367132857,1750665096646,-490.0,0.00028493,3]
[367132858,1750665096655,-490.0,0.00028493,3]
[367132859,1750665096664,-852.34,0.00028493,3]
[367132860,1750665096674,-490.0,0.00028493,3]
[367132861,1750665096684,-232.72469441,0.00028493,3]
[367132862,1750665096694,-490.0,0.00028493,3]
[367132863,1750665096704,-490.0,0.00028493,3]
[367132864,1750665096713,-972.8,0.00028493,3]
[367132865,1750665096725,-630.08667108,0.00028493,3]
[367132866,1750665096735,-508.65130847,0.00028493,3]
[367132867,1750665096745,-613.97,0.00028493,3]
[367132868,1750665096754,-490.0,0.00028493,3]
[367132869,1750665096764,-490.0,0.00028493,3]
[367132870,1750665096774,-490.0,0.00028493,3]
[367132871,1750665096783,-490.0,0.00028493,3]
[367132872,1750665096793,-490.0,0.00028493,3]
[367132873,1750665096803,-490.0,0.00028493,3]
[367132874,1750665096812,-490.0,0.00028493,3]
[367132875,1750665096821,-490.0,0.00028493,3]
[367132876,1750665096831,-490.0,0.00028493,3]
[367132877,1750665096841,-490.0,0.00028493,3]
[367132878,1750665096851,-490.0,0.00028493,3]
[367132879,1750665096860,-490.0,0.00028493,3]
[367132880,1750665096870,-950.12,0.00028493,3]
[367132881,1750665096880,-490.0,0.00028493,3]
[367132882,1750665096890,-490.0,0.00028493,3]
[367132883,1750665096899,-490.0,0.00028493,3]
[367132884,1750665096909,-556.24837886,0.00028493,3]
[367132885,1750665096919,-732.25,0.00028493,3]
[367132886,1750665096932,-678.97,0.00028493,3]
[367132887,1750665096944,-490.0,0.00028493,3]
[367132888,1750665096954,-490.0,0.00028493,3]
[367132889,1750665096964,-490.0,0.00028493,3]
[367132890,1750665096975,-838.48,0.00028493,3]
[367132891,1750665096984,-699.02,0.00028493,3]
[367132892,1750665096994,-151.324371,0.00028493,7]
[367132893,1750665097004,-564.25,0.00028493,3]
[367132894,1750665097015,-490.0,0.00028493,3]
[367132895,1750665097024,-151.0,0.00028493,7]
[367132896,1750665097034,-1071.68,0.00028493,3]
[367132897,1750665097048,-151.0,0.00028493,7]
[367132898,1750665097059,-490.0,0.00028493,3]
[367132899,1750665097069,-699.34,0.00028493,3]
[367132900,1750665097079,-662.89,0.00028493,3]
[367132901,1750665097088,-564.94,0.00028493,3]
[367132902,1750665097099,-490.0,0.00028493,3]
[367132903,1750665097108,-490.0,0.00028493,3]
[367132904,1750665097117,-490.0,0.00028493,3]
[367132905,1750665097127,-151.0,0.00028493,7]
[367132906,1750665097136,-151.0,0.00028493,7]
[367132907,1750665097146,-1230.15,0.00028493,3]
[367132908,1750665097155,-490.0,0.00028493,3]
[367132909,1750665097164,-490.0,0.00028493,3]
[367132910,1750665097174,-582.52,0.00028493,3]
[367132911,1750665097183,-943.42,0.00028493,3]
[367132912,1750665097192,-490.0,0.00028493,3]
[367132913,1750665097202,-151.0,0.00028493,7]
[367132914,1750665097211,-999.65,0.00028493,3]
[367132915,1750665097220,-370.03284264,0.00028493,3]
[367132916,1750665097229,-490.0,0.00028493,3]
[367132917,1750665097239,-448.99114996,0.00028493,3]
[367132918,1750665097248,-490.0,0.00028493,3]
[367132919,1750665097258,-490.0,0.00028493,3]
[367132920,1750665097267,-490.0,0.00028493,3]
[367132921,1750665097277,-490.0,0.00028493,3]
[367132922,1750665097286,-490.0,0.00028493,3]
[367132923,1750665097295,-1066.85,0.00028493,3]
[367132924,1750665097305,-1100.39,0.00028493,3]
[367132925,1750665097315,-490.0,0.00028493,3]
[367132926,1750665097325,-629.46,0.00028493,3]
[367132927,1750665097336,-490.0,0.00028493,3]
[367132928,1750665097347,-620.31,0.00028493,3]
[367132929,1750665097357,-834.77,0.00028493,3]
[367132930,1750665097366,-490.0,0.00028493,3]
[367132931,1750665097376,-861.89,0.00028493,3]
[367132932,1750665097385,-490.0,0.00028493,3]
[367132933,1750665097394,-500.99,0.00028493,3]
[367132934,1750665097404,-629.12,0.00028493,3]
[367132935,1750665097414,-1274.6,0.00028493,3]
[367132936,1750665097424,-1305.62,0.00028493,3]
[367132937,1750665097433,-557.46,0.00028493,3]
[367132938,1750665097443,-151.0,0.00028493,7]
[367132939,1750665097452,-153.586799,0.00028493,7]
[367132940,1750665097462,-774.41,0.00028493,3]
[367132941,1750665097471,-549.68,0.00028493,3]
[367132942,1750665097481,-630.81,0.00028493,3]
[367132943,1750665097491,-1051.6,0.00028493,3]
[367132944,1750665097500,-490.0,0.00028493,3]
[367132945,1750665097510,-559.89,0.00028493,3]
[367132946,1750665097519,-1923.63,0.00028493,3]
[367132947,1750665097529,-490.0,0.00028493,3]
[367132948,1750665097538,-490.0,0.00028493,3]
[367132949,1750665097548,-574.93,0.00028493,3]
[367132950,1750665097557,-490.0,0.00028493,3]
[367132951,1750665097567,-490.0,0.00028493,3]
[367132952,1750665097576,-1572.34,0.00028493,3]
[367132953,1750665097586,-490.0,0.00028493,3]
[367132954,1750665097595,-490.0,0.00028493,3]
[367132955,1750665097605,-490.0,0.00028493,3]
[367132956,1750665097614,-682.57,0.00028493,3]
[367132957,1750665097623,-490.0,0.00028493,3]
[367132958,1750665097633,-1697.22,0.00028493,3]
[367132959,1750665097643,-169.496687,0.00028493,7]
[367132960,1750665097653,-490.0,0.00028493,3]
[367132961,1750665097663,-880.29,0.00028493,3]
[367132962,1750665097672,-490.0,0.00028493,3]
[367132963,1750665097682,-1269.91,0.00028493,3]
[367132964,1750665097691,-710.25,0.00028493,3]
[367132965,1750665097700,-490.0,0.00028493,3]
[367132966,1750665097710,-813.4,0.00028493,3]
[367132967,1750665097720,-2095.98,0.00028493,3]
[367132968,1750665097730,-490.0,0.00028493,3]
[367132969,1750665097739,-860.56,0.00028493,3]
[367132970,1750665097748,-490.0,0.00028493,3]
[367132971,1750665097757,-151.0,0.00028493,7]
[367132972,1750665097767,-1189.08,0.00028493,3]
[367132973,1750665097776,-490.0,0.00028493,3]
[367132974,1750665097786,-592.68,0.00028493,3]
[367132975,1750665097795,-490.0,0.00028493,3]
[367132976,1750665097804,-490.0,0.00028493,3]
[367132977,1750665097813,-154.971412,0.00028493,7]
[367132978,1750665097823,-1404.19,0.00028493,3]
[367132979,1750665097832,-693.19,0.00028493,2]
[367132980,1750665097841,-490.0,0.00028493,3]
[367132981,1750665097850,-490.0,0.00028493,3]
[367132982,1750665097859,-1041.14,0.00028493,3]
[367132983,1750665097869,-151.0,0.00028493,7]
[367132984,1750665097877,-490.0,0.00028493,3]
[367132985,1750665097886,-1153.44,0.00028493,3]
[367132986,1750665097895,-562.57,0.00028493,3]
[367132987,1750665097904,-490.0,0.00028493,3]
[367132988,1750665097913,-490.0,0.00028493,3]
[367132989,1750665097923,-1104.92,0.00028493,3]
[367132990,1750665097936,-490.0,0.00028493,3]
[367132991,1750665097946,-1408.6,0.00028493,3]
[367132992,1750665097955,-153.534742,0.00028493,7]
[367132993,1750665097964,-490.0,0.00028493,3]
[367132994,1750665097974,-490.0,0.00028493,3]
[367132995,1750665097983,-1311.06,0.00028493,3]
[367132996,1750665097992,-490.0,0.00028493,3]
[367132997,1750665098003,-490.0,0.00028493,2]
[367132998,1750665098013,-490.0,0.00028493,3]
[367132999,1750665098022,-1143.07,0.00028493,3]
[367133000,1750665098031,-1915.03,0.00028493,3]
[367133001,1750665098040,-490.0,0.00028493,3]
[367133002,1750665098049,-490.0,0.00028493,3]
[367133003,1750665098059,-1096.22,0.00028493,3]
[367133004,1750665098069,-763.88,0.00028493,3]
[367133005,1750665098078,-1133.12,0.00028493,3]
[367133006,1750665098088,-151.0,0.00028493,7]
[367133007,1750665098097,-490.0,0.00028493,3]
[367133008,1750665098107,-1026.56,0.00028493,3]
[367133009,1750665098117,-490.0,0.00028493,3]
[367133010,1750665098127,-490.0,0.00028493,3]
[367133011,1750665098136,-1230.65,0.00028493,3]
[367133012,1750665098145,-1008.53,0.00028493,3]
[367133013,1750665098154,-490.0,0.00028493,3]
[367133014,1750665098163,-300.0,0.00028493,3]
[367133015,1750665098172,-1722.2,0.00028493,3]
[367133016,1750665098181,-1588.78,0.00028493,3]
[367133017,1750665098191,-490.0,0.00028493,3]
[367133018,1750665098200,-490.0,0.00028493,3]
[367133019,1750665098209,-896.42,0.00028493,3]
[367133020,1750665098218,-961.21,0.00028493,3]
[367133021,1750665098228,-490.0,0.00028493,3]
[367133022,1750665098237,-490.0,0.00028493,3]
[367133023,1750665098246,-490.0,0.00028493,3]
[367133024,1750665098255,-633.05,0.00028493,3]
[367133025,1750665098264,-1367.92,0.00028493,3]
[367133026,1750665098273,-844.81,0.00028493,3]
[367133027,1750665098283,-542.77,0.00028493,3]
[367133028,1750665098292,-611.73,0.00028493,3]
[367133029,1750665098301,-490.0,0.00028493,3]
[367133030,1750665098310,-807.21,0.00028493,3]
[367133031,1750665098319,-490.0,0.00028493,3]
[367133032,1750665098328,-956.99,0.00028493,3]
[367133033,1750665098337,-1617.12,0.00028493,3]
[367133034,1750665098347,-490.0,0.00028493,3]
[367133035,1750665098356,-490.0,0.00028493,3]
[367133036,1750665098365,-519.34,0.00028493,3]
[367133037,1750665098374,-848.71,0.00028493,3]
[367133038,1750665098383,-790.76,0.00028493,3]
[367133039,1750665098392,-613.34,0.00028493,3]
[367133040,1750665098402,-742.62,0.00028493,3]
[367133041,1750665098411,-2760.23,0.00028493,3]
[367133042,1750665098420,-2345.46,0.00028493,2]
[367133043,1750665098430,-344.12226164,0.00028493,3]
[367133044,1750665098439,-1288.97,0.00028493,3]
[367133045,1750665098448,-1422.0,0.00028493,3]
[367133046,1750665098457,-1019.17,0.00028493,3]
[367133047,1750665098467,-1327.38,0.00028493,3]
[367133048,1750665098476,-490.0,0.00028493,3]
[367133049,1750665098486,-608.9,0.00028493,3]
[367133050,1750665098497,-490.0,0.00028493,3]
[367133051,1750665098506,-1180.83,0.00028493,3]
[367133052,1750665098516,-490.0,0.00028493,3]
[367133053,1750665098526,-490.0,0.00028493,3]
[367133054,1750665098536,-692.81,0.00028493,3]
[367133055,1750665098545,-490.0,0.00028493,3]
[367133056,1750665098555,-490.0,0.00028493,3]
[367133057,1750665098566,-778.5,0.00028493,3]
[367133058,1750665098576,-490.0,0.00028493,3]
[367133059,1750665098585,-1065.89,0.00028493,3]
[367133060,1750665098594,-665.43,0.00028493,3]
[367133061,1750665098604,-637.7,0.00028493,3]
[367133062,1750665098613,-490.0,0.00028493,3]
[367133063,1750665098622,-490.0,0.00028493,3]
[367133064,1750665098631,-1166.57,0.00028493,3]
[367133065,1750665098640,-625.83,0.00028493,3]
[367133066,1750665098649,-1508.28,0.00028493,3]
[367133067,1750665098658,-526.99,0.00028493,3]
[367133068,1750665098667,-613.21,0.00028493,3]
[367133069,1750665098676,-1559.17,0.00028493,3]
[367133070,1750665098685,-490.0,0.00028493,3]
[367133071,1750665098694,-610.21,0.00028493,3]
[367133072,1750665098703,-714.94,0.00028493,3]
[367133073,1750665098712,-963.94,0.00028493,3]
[367133074,1750665098721,-868.65,0.00028493,3]
[367133075,1750665098730,-490.0,0.00028493,3]
[367133076,1750665098739,-1081.49,0.00028493,3]
[367133077,1750665098748,-490.0,0.00028493,3]
[367133078,1750665098757,-566.45,0.00028493,3]
[367133079,1750665098766,-1232.32,0.00028493,3]
[367133080,1750665098775,-1100.0,0.00028493,3]
[367133081,1750665098783,-1694.0,0.00028493,3]
[367133082,1750665098792,-490.0,0.00028493,3]
[367133083,1750665098801,-1228.14,0.00028493,3]
[367133084,1750665098810,-818.43,0.00028493,3]
[367133085,1750665098819,-490.0,0.00028493,3]
[367133086,1750665098828,-490.0,0.00028493,3]
[367133087,1750665098837,-835.03,0.00028493,3]
[367133088,1750665098846,-551.94,0.00028493,3]
[367133089,1750665098855,-490.0,0.00028493,3]
[367133090,1750665098864,-597.09156115,0.00028493,3]
[367133091,1750665098874,-1222.96,0.00028493,3]
[367133092,1750665098886,-490.0,0.00028493,3]
[367133093,1750665098896,-487.12952749,0.00028493,3]
[367133094,1750665098905,-490.0,0.00028493,3]
[367133095,1750665098915,-490.0,0.00028493,3]
[367133096,1750665098924,-880.33,0.00028493,3]
[367133097,1750665098939,-490.0,0.00028493,3]
[367133098,1750665098948,-1308.03,0.00028493,3]
[367133099,1750665098959,-490.0,0.00028493,3]
[367133100,1750665098969,-490.0,0.00028493,3]
[367133101,1750665098979,-749.38,0.00028493,3]
[367133102,1750665098991,-490.0,0.00028493,3]
[367133103,1750665099001,-906.2,0.00028493,3]
[367133104,1750665099012,-632.2,0.00028493,3]
[367133105,1750665099022,-736.07,0.00028493,3]
[367133106,1750665099031,-490.0,0.00028493,3]
[367133107,1750665099041,-1159.93,0.00028493,3]
[367133108,1750665099052,-490.0,0.00028493,3]
[367133109,1750665099062,-717.88,0.00028493,3]
[367133110,1750665099071,-490.0,0.00028493,3]
[367133111,1750665099080,-490.0,0.00028493,3]
[367133112,1750665099089,-793.46,0.00028493,3]
[367133113,1750665099099,-490.0,0.00028493,3]
[367133114,1750665099108,-490.0,0.00028493,3]
[367133115,1750665099118,-1185.89,0.00028493,3]
[367133116,1750665099128,-490.0,0.00028493,3]
[367133117,1750665099138,-1745.89,0.00028493,3]
[367133118,1750665099148,-1156.86,0.00028493,3]
[367133119,1750665099157,-991.3,0.00028493,3]
[367133120,1750665099167,-490.0,0.00028493,3]
[367133121,1750665099177,-490.0,0.00028493,3]
[367133122,1750665099188,-490.0,0.00028493,3]
[367133123,1750665099199,-648.95,0.00028493,3]
[367133124,1750665099208,-815.02,0.00028493,3]
[367133125,1750665099218,-830.59,0.00028493,3]
[367133126,1750665099228,-490.0,0.00028493,3]
[367133127,1750665099238,-490.0,0.00028493,3]
[367133128,1750665099248,-1055.32,0.00028493,3]
[367133129,1750665099261,-490.0,0.00028493,3]
[367133130,1750665099272,-490.0,0.00028493,3]
[367133131,1750665099282,-599.34,0.00028493,3]
[367133132,1750665099291,-1112.63,0.00028493,3]
[367133133,1750665099304,-490.0,0.00028493,3]
[367133134,1750665099315,-1313.29,0.00028493,3]
[367133135,1750665099326,-573.3,0.00028493,3]
[367133136,1750665099338,-546.93,0.00028493,3]
[367133137,1750665099349,-878.57,0.00028493,3]
[367133138,1750665099360,-1631.12,0.00028493,3]
[367133139,1750665099370,-490.0,0.00028493,3]
[367133140,1750665099380,-490.0,0.00028493,3]
[367133141,1750665099390,-735.78,0.00028493,3]
[367133142,1750665099401,-636.12,0.00028493,3]
[367133143,1750665099410,-490.0,0.00028493,3]
[367133144,1750665099420,-2393.15,0.00028493,3]
[367133145,1750665099429,-490.0,0.00028493,3]
[367133146,1750665099440,-494.91,0.00028493,3]
[367133147,1750665099450,-682.52,0.00028493,3]
[367133148,1750665099459,-490.0,0.00028493,3]
[367133149,1750665099469,-992.14,0.00028493,3]
[367133150,1750665099479,-490.0,0.00028493,3]
[367133151,1750665099488,-792.47,0.00028493,3]
[367133152,1750665099498,-426.14289425,0.00028493,3]
[367133153,1750665099507,-694.47,0.00028493,3]
[367133154,1750665099517,-571.27,0.00028493,3]
[367133155,1750665099526,-642.38,0.00028493,3]
[367133156,1750665099536,-490.0,0.00028493,3]
[367133157,1750665099547,-1226.31,0.00028493,3]
[367133158,1750665099556,-490.0,0.00028493,3]
[367133159,1750665099567,-1123.21,0.00028493,3]
[367133160,1750665099577,-490.0,0.00028493,3]
[367133161,1750665099587,-1133.23,0.00028493,3]
[367133162,1750665099598,-518.3,0.00028493,3]
[367133163,1750665099609,-490.0,0.00028493,3]
[367133164,1750665099620,-490.0,0.00028493,3]
[367133165,1750665099629,-670.7,0.00028493,3]
[367133166,1750665099639,-578.64,0.00028493,3]
[367133167,1750665099648,-993.54,0.00028493,3]
[367133168,1750665099658,-490.0,0.00028493,3]
[367133169,1750665099669,-490.0,0.00028493,3]
[367133170,1750665099679,-967.76,0.00028493,3]
[367133171,1750665099689,-508.66,0.00028493,3]
[367133172,1750665099699,-490.0,0.00028493,3]
[367133173,1750665099709,-3755.94,0.00028493,3]
[367133174,1750665099719,-490.0,0.00028493,3]
[367133175,1750665099728,-582.53,0.00028493,3]
[367133176,1750665099739,-505.58,0.00028493,3]
[367133177,1750665099748,-2144.51,0.00028493,3]
[367133178,1750665099758,-490.0,0.00028493,3]
[367133179,1750665099768,-490.0,0.00028493,3]
[367133180,1750665099778,-490.0,0.00028493,3]
[367133181,1750665099788,-490.0,0.00028493,3]
[367133182,1750665099798,-301.88,0.00028493,3]
[367133183,1750665099808,-561.18,0.00028493,3]
[367133184,1750665099818,-528.73,0.00028493,3]
[367133185,1750665099828,-1111.73,0.00028493,3]
[367133186,1750665099838,-949.02,0.00028493,3]
[367133187,1750665099848,-490.0,0.00028493,3]
[367133188,1750665099857,-4587.21,0.00028493,3]
[367133189,1750665099867,-490.0,0.00028493,3]
[367133190,1750665099876,-525.95,0.00028493,3]
[367133191,1750665099886,-621.21,0.00028493,3]
[367133192,1750665099895,-1169.57,0.00028493,3]
[367133193,1750665099906,-2316.39,0.00028493,3]
[367133194,1750665099916,-490.0,0.00028493,3]
[367133195,1750665099926,-490.0,0.00028493,3]
[367133196,1750665099939,-956.96,0.00028493,3]
[367133197,1750665099949,-1387.9,0.00028493,3]
[367133198,1750665099959,-691.28,0.00028493,3]
[367133199,1750665099969,-10717.07,0.00028493,3]
[367133200,1750665099979,-917.45,0.00028493,3]
[367133201,1750665099989,-1088.76,0.00028493,3]
[367133202,1750665099999,-595.21,0.00028493,3]
[367133203,1750665100011,-490.0,0.00028493,3]
[367133204,1750665100021,-702.14,0.00028493,3]
[367133205,1750665100030,-490.0,0.00028493,3]
[367133206,1750665100040,-864.46,0.00028493,3]
[367133207,1750665100049,-1079.72,0.00028493,3]
[367133208,1750665100060,-490.0,0.00028493,3]
[367133209,1750665100069,-490.0,0.00028493,3]
[367133210,1750665100079,-817.64,0.00028493,3]
[367133211,1750665100088,-774.97,0.00028493,3]
[367133212,1750665100098,-4643.17,0.00028493,3]
[367133213,1750665100108,-1077.61,0.00028493,3]
[367133214,1750665100118,-490.0,0.00028493,3]
[367133215,1750665100129,-1165.94,0.00028493,3]
[367133216,1750665100138,-4614.84,0.00028493,3]
[367133217,1750665100150,-490.0,0.00028493,3]
[367133218,1750665100159,-490.0,0.00028493,3]
[367133219,1750665100170,-2049.2,0.00028493,3]
[367133220,1750665100180,-652.3,0.00028493,3]
[367133221,1750665100191,-490.0,0.00028493,3]
[367133222,1750665100200,-809.74,0.00028493,3]
[367133223,1750665100212,-1363.03,0.00028493,3]
[367133224,1750665100222,-553.84,0.00028493,3]
[367133225,1750665100233,-508.05,0.00028493,3]
[367133226,1750665100242,-1489.9,0.00028493,3]
[367133227,1750665100252,-490.0,0.00028493,3]
[367133228,1750665100262,-1190.7,0.00028493,3]
[367133229,1750665100272,-1200.07,0.00028493,3]
[367133230,1750665100282,-1280.57,0.00028493,3]
[367133231,1750665100291,-490.0,0.00028493,3]
[367133232,1750665100301,-1170.78,0.00028493,3]
[367133233,1750665100311,-490.0,0.00028493,3]
[367133234,1750665100321,-499.1430909,0.00028493,3]
[367133235,1750665100331,-490.0,0.00028493,3]
[367133236,1750665100344,-956.44,0.00028493,3]
[367133237,1750665100356,-572.0,0.00028493,3]
[367133238,1750665100366,-1009.65,0.00028493,3]
[367133239,1750665100377,-869.62,0.00028493,3]
[367133240,1750665100390,-490.0,0.00028493,3]
[367133241,1750665100402,-1423.29,0.00028493,3]
[367133242,1750665100412,-539.83,0.00028493,3]
[367133243,1750665100422,-992.64,0.00028493,3]
[367133244,1750665100434,-3180.4,0.00028493,3]
[367133245,1750665100444,-747.63,0.00028493,3]
[367133246,1750665100454,-490.0,0.00028493,3]
[367133247,1750665100466,-1140.49,0.00028493,3]
[367133248,1750665100478,-615.7,0.00028493,3]
[367133249,1750665100489,-1016.47,0.00028493,3]
[367133250,1750665100500,-852.0,0.00028493,3]
[367133251,1750665100511,-490.0,0.00028493,3]
[367133252,1750665100522,-966.13,0.00028493,3]
[367133253,1750665100534,-2112.61,0.00028493,3]
[367133254,1750665100544,-1260.84,0.00028493,3]
[367133255,1750665100553,-575.92,0.00028493,3]
[367133256,1750665100563,-477.50165297,0.00028493,3]
[367133257,1750665100573,-926.89,0.00028493,3]
[367133258,1750665100584,-699.39,0.00028493,3]
[367133259,1750665100595,-661.4,0.00028493,3]
[367133260,1750665100607,-543.13,0.00028493,3]
[367133261,1750665100618,-7307.56,0.00028493,3]
[367133262,1750665100629,-1188.57,0.00028493,3]
[367133263,1750665100640,-1275.33,0.00028493,3]
[367133264,1750665100651,-490.0,0.00028493,3]
[367133265,1750665100661,-649.03,0.00028493,3]
[367133266,1750665100671,-1148.8,0.00028493,3]
[367133267,1750665100685,-532.74,0.00028493,3]
[367133268,1750665100695,-1769.62,0.00028493,3]
[367133269,1750665100706,-1684.74,0.00028493,3]
[367133270,1750665100717,-1245.46,0.00028493,3]
[367133271,1750665100727,-490.0,0.00028493,3]
[367133272,1750665100737,-490.0,0.00028493,3]
[367133273,1750665100747,-490.0,0.00028493,3]
[367133274,1750665100757,-946.71,0.00028493,3]
[367133275,1750665100768,-2328.53,0.00028493,3]
[367133276,1750665100778,-1790.2,0.00028493,3]
[367133277,1750665100788,-490.0,0.00028493,3]
[367133278,1750665100798,-320.12,0.00028493,3]
[367133279,1750665100808,-490.0,0.00028493,3]
[367133280,1750665100819,-490.0,0.00028493,3]
[367133281,1750665100830,-490.0,0.00028493,3]
[367133282,1750665100840,-490.0,0.00028493,3]
[367133283,1750665100852,-490.0,0.00028493,3]
[367133284,1750665100862,-1416.9,0.00028493,3]
[367133285,1750665100873,-569.78,0.00028493,3]
[367133286,1750665100883,-213.9817738,0.00028493,3]
[367133287,1750665100894,-1584.55,0.00028493,3]
[367133288,1750665100904,-490.0,0.00028493,3]
[367133289,1750665100914,-1146.51,0.00028493,3]
[367133290,1750665100924,-721.25,0.00028493,3]
[367133291,1750665100936,-1328.97,0.00028493,3]
[367133292,1750665100946,-1180.0,0.00028493,3]
[367133293,1750665100956,-1878.33,0.00028493,3]
[367133294,1750665100965,-490.0,0.00028493,3]
[367133295,1750665100976,-1168.59,0.00028493,3]
[367133296,1750665100986,-1333.53,0.00028493,3]
[367133297,1750665100996,-1620.62,0.00028493,3]
[367133298,1750665101006,-631.77,0.00028493,3]
[367133299,1750665101017,-1030.66,0.00028493,3]
[367133300,1750665101026,-490.0,0.00028493,3]
[367133301,1750665101036,-1543.7,0.00028493,3]
[367133302,1750665101046,-490.0,0.00028493,3]
[367133303,1750665101055,-490.0,0.00028493,3]
[367133304,1750665101065,-490.0,0.00028493,3]
[367133305,1750665101075,-811.77,0.00028493,3]
[367133306,1750665101085,-1156.18,0.00028493,3]
[367133307,1750665101095,-1152.47,0.00028493,3]
[367133308,1750665101105,-1328.16,0.00028493,3]
[367133309,1750665101115,-892.28,0.00028493,3]
[367133310,1750665101126,-926.55,0.00028493,3]
[367133311,1750665101136,-5128.86,0.00028493,3]
[367133312,1750665101147,-929.97,0.00028493,3]
[367133313,1750665101157,-895.24,0.00028493,3]
[367133314,1750665101167,-490.0,0.00028493,3]
[367133315,1750665101178,-514.94,0.00028493,3]
[367133316,1750665101188,-647.41,0.00028493,3]
[367133317,1750665101198,-1059.11,0.00028493,3]
[367133318,1750665101208,-3162.98,0.00028493,3]
[367133319,1750665101219,-10436.94,0.00028493,3]
[367133320,1750665101232,-490.0,0.00028493,3]
[367133321,1750665101242,-1189.53,0.00028493,3]
[367133322,1750665101252,-2195.9,0.00028493,3]
[367133323,1750665101263,-2202.71,0.00028493,3]
[367133324,1750665101275,-624.22,0.00028493,3]
[367133325,1750665101285,-1149.03,0.00028493,3]
[367133326,1750665101295,-4270.68,0.00028493,3]
[367133327,1750665101306,-534.25,0.00028493,3]
[367133328,1750665101317,-545.8,0.00028493,3]
[367133329,1750665101328,-490.0,0.00028493,3]
[367133330,1750665101339,-490.0,0.00028493,3]
[367133331,1750665101349,-490.0,0.00028493,3]
[367133332,1750665101359,-1252.75,0.00028493,3]
[367133333,1750665101617,-1146.08,0.00028493,3]
[367133334,1750665101627,-1122.82,0.00028493,3]
[367133335,1750665101637,-490.0,0.00028493,3]
[367133336,1750665101646,-490.0,0.00028493,3]